bitfinex-derivatives/quotes_BTCF0:USTF0_20260315
["timestamp","ask_amount","ask_price","bid_price","bid_amount"]
[1773557928188,0.041954,71496.0,71482.0,0.0014]
[1773557929092,0.041954,71495.0,71482.0,0.043362]
[1773557930892,0.02197537,71509.0,71489.0,0.02330044]
[1773557931085,0.0014,71508.0,71490.0,0.0014]
[1773557931397,0.041947,71508.0,71495.0,0.041954]
[1773557931984,0.041947,71507.0,71495.0,0.041954]
[1773557932700,0.041947,71507.0,71493.0,0.06525544]
[1773557932995,0.041948,71506.0,71493.0,0.06525544]
[1773557934395,0.041948,71506.0,71494.0,0.0014]
[1773557935199,0.041949,71505.0,71494.0,0.0014]
[1773557938999,0.02200721,71510.0,71495.0,0.0014]
[1773557939000,0.06480658,71501.0,71495.0,0.0014]
[1773557939201,0.041952,71500.0,71495.0,0.0014]
[1773557940603,0.041952,71500.0,71492.0,0.0014]
[1773557941499,0.041954,71496.0,71480.0,0.08810104]
[1773557941694,0.041954,71496.0,71483.0,0.041961]
[1773557942094,0.02285558,71498.0,71481.0,0.0014]
[1773557942095,0.06480858,71498.0,71484.0,0.04196]
[1773557951310,0.041953,71497.0,71484.0,0.04196]
[1773557957212,0.041954,71496.0,71484.0,0.04196]
[1773557960115,0.041954,71496.0,71485.0,0.0014]
[1773557964813,0.02223562,71495.0,71481.0,0.0014]
[1773557965416,0.041957,71492.0,71481.0,0.0014]
[1773557965814,0.041955,71494.0,71481.0,0.0014]
[1773557966119,0.041955,71494.0,71480.0,0.08809221]
[1773557966319,0.041955,71494.0,71481.0,0.0014]
[1773557966510,0.041956,71493.0,71481.0,0.043362]
[1773557970313,0.041956,71493.0,71482.0,0.0014]
[1773557971117,0.02223562,71497.0,71482.0,0.0014]
[1773557972119,0.041956,71492.0,71482.0,0.0014]
[1773557972312,0.041956,71492.0,71483.0,0.0014]
[1773557974222,0.041956,71492.0,71479.0,0.041963]
[1773557974419,0.041956,71492.0,71480.0,0.0014]
[1773557983643,0.041956,71492.0,71480.0,0.043363]
[1773557984529,0.0014,71498.0,71483.0,0.02154637]
[1773557984730,0.041954,71496.0,71483.0,0.06350737]
[1773557984931,0.041954,71496.0,71484.0,0.04196]
[1773557985327,0.041953,71498.0,71485.0,0.04196]
[1773557986723,0.041952,71499.0,71484.0,0.04196]
[1773557986928,0.041953,71498.0,71485.0,0.04196]
[1773557988024,0.041953,71498.0,71480.0,0.08949221]
[1773557988025,0.041944,71512.0,71497.0,0.041953]
[1773557988329,0.041943,71514.0,71496.0,0.02154637]
[1773557988527,0.041943,71514.0,71501.0,0.04195]
[1773557989331,0.041944,71513.0,71501.0,0.04195]
[1773557989832,0.001,71512.0,71501.0,0.04195]
[1773557990225,0.041944,71513.0,71501.0,0.04195]
[1773557990422,0.041945,71512.0,71500.0,0.08809221]
[1773557990626,0.041946,71510.0,71496.0,0.043353]
[1773557990827,0.06435453,71510.0,71496.0,0.043353]
[1773557991932,0.02183084,71509.0,71497.0,0.041953]
[1773557998836,0.02183084,71509.0,71498.0,0.041952]
[1773558000136,0.02183084,71509.0,71500.0,0.041951]
[1773558001342,0.02183084,71509.0,71496.0,0.0014]
[1773558001638,0.04195,71503.0,71491.0,0.0014]
[1773558001838,0.02183084,71496.0,71485.0,0.04196]
[1773558002027,0.02183084,71508.0,71486.0,0.02302276]
[1773558002232,0.02183084,71513.0,71494.0,0.041955]
[1773558002427,0.02323084,71512.0,71494.0,0.041955]
[1773558002627,0.02183084,71518.0,71494.0,0.041955]
[1773558002831,0.041947,71508.0,71494.0,0.041955]
[1773558003031,0.043348,71507.0,71492.0,0.041956]
[1773558007047,0.041948,71506.0,71492.0,0.041956]
[1773558010345,0.041948,71506.0,71493.0,0.041955]
[1773558012245,0.0014,71505.0,71491.0,0.06497876]
[1773558015736,0.041948,71506.0,71491.0,0.06497876]
[1773558015937,0.1674448,71512.0,71500.0,0.08809221]
[1773558016145,0.1674448,71512.0,71498.0,0.041952]
[1773558017047,0.1254998,71512.0,71496.0,0.02287972]
[1773558017247,0.041944,71514.0,71500.0,0.041951]
[1773558017440,0.041944,71513.0,71500.0,0.041951]
[1773558019648,0.041945,71512.0,71498.0,0.041952]
[1773558023042,0.041945,71512.0,71499.0,0.02302276]
[1773558023854,0.041945,71511.0,71499.0,0.02302276]
[1773558026151,0.043345,71511.0,71499.0,0.02302276]
[1773558026453,0.041946,71510.0,71499.0,0.02302276]
[1773558026649,0.02403781,71508.0,71499.0,0.00449396]
[1773558028449,0.043346,71509.0,71499.0,0.00449396]
[1773558029258,0.02543781,71509.0,71487.0,0.0233954]
[1773558029554,0.02403781,71508.0,71490.0,0.041957]
[1773558029954,0.02403781,71508.0,71490.0,0.043357]
[1773558030956,0.041949,71504.0,71490.0,0.043357]
[1773558031157,0.0014,71503.0,71490.0,0.043357]
[1773558031858,0.04335,71503.0,71490.0,0.043357]
[1773558032068,0.02543781,71503.0,71479.0,0.0233954]
[1773558032249,0.041956,71492.0,71479.0,0.043363]
[1773558032755,0.041956,71492.0,71479.0,0.041963]
[1773558032959,0.043355,71494.0,71480.0,0.041963]
[1773558033855,0.043355,71494.0,71481.0,0.041962]
[1773558046465,0.041956,71493.0,71481.0,0.041962]
[1773558047867,0.0014,71494.0,71481.0,0.0233954]
[1773558049160,0.043355,71494.0,71481.0,0.0233954]
[1773558049967,0.043355,71494.0,71481.0,0.0653574]
[1773558050668,0.041956,71492.0,71480.0,0.041963]
[1773558052073,0.0014,71494.0,71478.0,0.0014]
[1773558052869,0.02188729,71492.0,71473.0,0.041967]
[1773558053174,0.0014,71494.0,71467.0,0.25192758]
[1773558053175,0.041961,71484.0,71470.0,0.041968]
[1773558053363,0.043361,71485.0,71472.0,0.041967]
[1773558053564,0.043361,71485.0,71473.0,0.02194452]
[1773558054665,0.041961,71484.0,71473.0,0.02194452]
[1773558056566,0.0014,71485.0,71473.0,0.06391152]
[1773558057478,0.04336,71485.0,71473.0,0.06391152]
[1773558058684,0.04336,71485.0,71473.0,0.02194452]
[1773558058873,0.041961,71484.0,71473.0,0.02194452]
[1773558064482,0.0014,71485.0,71473.0,0.02194452]
[1773558064982,0.04336,71485.0,71473.0,0.02194452]
[1773558065277,0.041961,71484.0,71473.0,0.02194452]
[1773558065483,0.041961,71484.0,71472.0,0.041967]
[1773558066780,0.041961,71484.0,71473.0,0.02194452]
[1773558067687,0.04196,71486.0,71473.0,0.06391152]
[1773558067891,0.04196,71486.0,71473.0,0.041967]
[1773558068077,0.04196,71486.0,71474.0,0.02194452]
[1773558068386,0.041953,71497.0,71485.0,0.02194452]
[1773558068690,0.0014,71496.0,71485.0,0.06390452]
[1773558069081,0.0014,71496.0,71485.0,0.02194452]
[1773558069679,0.043354,71496.0,71485.0,0.02194452]
[1773558069879,0.041955,71495.0,71485.0,0.02194452]
[1773558070280,0.041955,71495.0,71481.0,0.06390652]
[1773558070484,0.041955,71495.0,71482.0,0.041961]
[1773558074886,0.12360328,71500.0,71480.0,0.02194452]
[1773558075086,0.041951,71501.0,71491.0,0.02194452]
[1773558075586,0.0014,71505.0,71491.0,0.02194452]
[1773558075788,0.01541106,71511.0,71491.0,0.02194452]
[1773558075983,0.0014,71510.0,71491.0,0.02194452]
[1773558077085,0.041951,71502.0,71491.0,0.02194452]
[1773558077284,0.0014,71501.0,71491.0,0.02194452]
[1773558081693,0.0014,71518.0,71499.0,0.02221238]
[1773558081885,0.0014,71518.0,71501.0,0.04195]
[1773558081886,0.041943,71514.0,71501.0,0.04195]
[1773558082297,0.041943,71514.0,71501.0,0.06416238]
[1773558082499,0.02182472,71529.0,71505.0,0.02221238]
[1773558082697,0.02322472,71528.0,71505.0,0.02221238]
[1773558083989,0.041941,71517.0,71505.0,0.02221238]
[1773558085298,0.041942,71516.0,71505.0,0.02221238]
[1773558086997,0.041943,71515.0,71503.0,0.0014]
[1773558087298,0.02182472,71510.0,71489.0,0.02221238]
[1773558087502,0.08805553,71513.0,71474.0,0.25247456]
[1773558087503,0.041953,71498.0,71487.0,0.0014]
[1773558087799,0.041953,71497.0,71484.0,0.04196]
[1773558089001,0.041954,71496.0,71483.0,0.02221238]
[1773558089301,0.041953,71497.0,71483.0,0.0014]
[1773558089501,0.041953,71497.0,71482.0,0.041962]
[1773558089802,0.041953,71497.0,71483.0,0.043361]
[1773558089996,0.041953,71497.0,71483.0,0.041961]
[1773558090196,0.041953,71497.0,71483.0,0.043361]
[1773558091096,0.041953,71497.0,71483.0,0.0014]
[1773558091297,0.0014,71498.0,71484.0,0.04196]
[1773558093601,0.0014,71498.0,71484.0,0.02221238]
[1773558093804,0.0014,71498.0,71485.0,0.04196]
[1773558094109,0.0014,71498.0,71486.0,0.041959]
[1773558096302,0.10992926,71510.0,71491.0,0.041956]
[1773558096607,0.0014,71509.0,71492.0,0.02221238]
[1773558096905,0.0014,71508.0,71492.0,0.02221238]
[1773558097097,0.0014,71507.0,71492.0,0.02221238]
[1773558098100,0.041949,71504.0,71492.0,0.02221238]
[1773558100010,0.0014,71507.0,71492.0,0.02221238]
[1773558100315,0.041949,71504.0,71492.0,0.02221238]
[1773558104415,0.02182472,71526.0,71490.0,0.02221238]
[1773558104710,0.041927,71541.0,71501.0,0.041951]
[1773558104711,0.041942,71516.0,71501.0,0.041951]
[1773558104908,0.043342,71516.0,71502.0,0.02221238]
[1773558105102,0.043342,71516.0,71502.0,0.06416238]
[1773558105303,0.041942,71516.0,71502.0,0.06416238]
[1773558105501,0.041942,71516.0,71503.0,0.02221238]
[1773558105715,0.0014,71517.0,71505.0,0.02221238]
[1773558105909,0.0014,71517.0,71505.0,0.06416038]
[1773558106104,0.001,71516.0,71505.0,0.06416038]
[1773558106813,0.001,71516.0,71505.0,0.02221238]
[1773558107114,0.0014,71517.0,71505.0,0.02221238]
[1773558107313,0.0024,71517.0,71505.0,0.02221238]
[1773558107813,0.001,71516.0,71505.0,0.02221238]
[1773558109504,0.001,71516.0,71507.0,0.02221238]
[1773558109707,0.043339,71521.0,71507.0,0.02221238]
[1773558109910,0.001,71517.0,71507.0,0.02221238]
[1773558110320,0.04194,71520.0,71507.0,0.02221238]
[1773558112509,0.04294,71520.0,71507.0,0.02221238]
[1773558113617,0.04194,71520.0,71507.0,0.02221238]
[1773558114317,0.041941,71519.0,71506.0,0.041947]
[1773558114511,0.041942,71517.0,71504.0,0.041949]
[1773558114715,0.13012467,71521.0,71502.0,0.04195]
[1773558114716,0.041942,71516.0,71502.0,0.04195]
[1773558115018,0.041942,71516.0,71500.0,0.0014]
[1773558116119,0.041942,71516.0,71503.0,0.041949]
[1773558117521,0.041941,71518.0,71504.0,0.041948]
[1773558120924,0.041942,71517.0,71504.0,0.041948]
[1773558123821,0.041942,71517.0,71504.0,0.06414184]
[1773558125025,0.042942,71517.0,71504.0,0.06414184]
[1773558128629,0.02065956,71516.0,71492.0,0.02219384]
[1773558128830,0.041944,71512.0,71495.0,0.02219384]
[1773558129022,0.041944,71512.0,71495.0,0.02359384]
[1773558129223,0.041945,71511.0,71498.0,0.041952]
[1773558129424,0.043345,71511.0,71498.0,0.041952]
[1773558130824,0.041947,71508.0,71496.0,0.041954]
[1773558133737,0.041946,71510.0,71496.0,0.041954]
[1773558133935,0.041946,71510.0,71497.0,0.041953]
[1773558138641,0.041949,71504.0,71490.0,0.041957]
[1773558138942,0.0014,71503.0,71490.0,0.041957]
[1773558140234,0.04335,71503.0,71490.0,0.041957]
[1773558140636,0.0014,71503.0,71490.0,0.041957]
[1773558142042,0.04335,71503.0,71490.0,0.041957]
[1773558146542,0.0014,71503.0,71490.0,0.041957]
[1773558146747,0.04195,71502.0,71490.0,0.041957]
[1773558148237,0.041952,71499.0,71487.0,0.0014]
[1773558148650,0.041952,71499.0,71482.0,0.01961015]
[1773558148837,0.041952,71499.0,71484.0,0.01961015]
[1773558149149,0.041952,71499.0,71485.0,0.02101015]
[1773558149950,0.041952,71499.0,71486.0,0.041959]
[1773558150450,0.041951,71501.0,71488.0,0.041958]
[1773558150745,0.04195,71502.0,71488.0,0.01961015]
[1773558151648,0.02027218,71520.0,71496.0,0.01961015]
[1773558151847,0.0014,71517.0,71501.0,0.01961015]
[1773558152052,0.043342,71517.0,71505.0,0.01961015]
[1773558152939,0.044342,71517.0,71505.0,0.01961015]
[1773558153143,0.0024,71517.0,71506.0,0.01961015]
[1773558153449,0.0034,71517.0,71506.0,0.01961015]
[1773558154646,0.0024,71517.0,71506.0,0.01961015]
[1773558156757,0.0014,71517.0,71506.0,0.01961015]
[1773558159560,0.0014,71517.0,71507.0,0.06155715]
[1773558159857,0.0014,71517.0,71508.0,0.01961015]
[1773558160856,0.0014,71517.0,71501.0,0.01961015]
[1773558161061,0.041942,71516.0,71496.0,0.01961015]
[1773558161260,0.041942,71516.0,71498.0,0.01961015]
[1773558161454,0.041942,71516.0,71498.0,0.02101015]
[1773558161649,0.041942,71516.0,71503.0,0.041949]
[1773558161954,0.0014,71515.0,71505.0,0.01961015]
[1773558163056,0.0014,71515.0,71506.0,0.041947]
[1773558163658,0.0014,71515.0,71505.0,0.01961015]
[1773558164158,0.0014,71515.0,71502.0,0.04195]
[1773558164356,0.0014,71515.0,71490.0,0.08809848]
[1773558164357,0.041946,71509.0,71496.0,0.041953]
[1773558164562,0.041947,71507.0,71490.0,0.01961015]
[1773558164763,0.041947,71507.0,71491.0,0.02101015]
[1773558164962,0.041947,71507.0,71492.0,0.0014]
[1773558165159,0.043347,71507.0,71493.0,0.0014]
[1773558166065,0.043347,71507.0,71495.0,0.041954]
[1773558172468,0.0014,71507.0,71495.0,0.041954]
[1773558179375,0.0014,71507.0,71496.0,0.041953]
[1773558181274,0.0014,71507.0,71490.0,0.041957]
[1773558181473,0.04195,71503.0,71490.0,0.041957]
[1773558182470,0.04195,71503.0,71491.0,0.041956]
[1773558182670,0.041949,71505.0,71491.0,0.041956]
[1773558182872,0.041949,71505.0,71492.0,0.041956]
[1773558183470,0.08809848,71502.0,71487.0,0.041959]
[1773558183777,0.041951,71501.0,71487.0,0.041959]
[1773558183971,0.041951,71501.0,71488.0,0.041958]
[1773558184183,0.0014,71500.0,71488.0,0.041958]
[1773558191580,0.0014,71500.0,71488.0,0.06172406]
[1773558194476,0.0014,71500.0,71488.0,0.041958]
[1773558194681,0.0014,71500.0,71489.0,0.01976606]
[1773558194877,0.0014,71500.0,71489.0,0.06172306]
[1773558195077,0.0014,71500.0,71489.0,0.041957]
[1773558195277,0.0014,71500.0,71489.0,0.01976606]
[1773558197181,0.0014,71500.0,71483.0,0.02116606]
[1773558197182,0.08949848,71500.0,71483.0,0.02116606]
[1773558197385,0.08949848,71500.0,71483.0,0.01976606]
[1773558199082,0.041953,71498.0,71484.0,0.06172606]
[1773558199993,0.041953,71498.0,71486.0,0.01976606]
[1773558208189,0.041953,71497.0,71485.0,0.04196]
[1773558218603,0.041953,71497.0,71485.0,0.06035578]
[1773558234325,0.041953,71497.0,71485.0,0.01839578]
[1773558246725,0.0014,71500.0,71485.0,0.01839578]
[1773558246928,0.0014,71517.0,71507.0,0.01874864]
[1773558247133,0.12695889,71521.0,71507.0,0.01874864]
[1773558247433,0.0014,71521.0,71501.0,0.01874864]
[1773558247624,0.0014,71521.0,71508.0,0.01874864]
[1773558247827,0.0014,71521.0,71508.0,0.06069464]
[1773558248038,0.0014,71525.0,71511.0,0.01874864]
[1773558248335,0.0014,71524.0,71511.0,0.01874864]
[1773558248525,0.0014,71523.0,71511.0,0.01874864]
[1773558248726,0.0014,71522.0,71511.0,0.01874864]
[1773558248926,0.0014,71521.0,71511.0,0.01874864]
[1773558250040,0.0014,71521.0,71506.0,0.01874864]
[1773558250230,0.04194,71520.0,71505.0,0.043348]
[1773558251235,0.04194,71520.0,71506.0,0.041947]
[1773558251437,0.01885082,71519.0,71499.0,0.0014]
[1773558251637,0.01885082,71519.0,71496.0,0.01874864]
[1773558251837,0.01885082,71519.0,71496.0,0.02014864]
[1773558252636,0.01885082,71519.0,71500.0,0.041951]
[1773558253338,0.01985082,71519.0,71500.0,0.041951]
[1773558254035,0.041943,71514.0,71500.0,0.041951]
[1773558254226,0.0014,71513.0,71500.0,0.041951]
[1773558258143,0.0014,71513.0,71500.0,0.06069964]
[1773558258745,0.0014,71513.0,71501.0,0.04195]
[1773558263545,0.0014,71513.0,71501.0,0.05980183]
[1773558268548,0.0014,71513.0,71502.0,0.05980183]
[1773558268939,0.0014,71513.0,71503.0,0.01785183]
[1773558273847,0.0014,71513.0,71504.0,0.01785183]
[1773558276347,0.0014,71512.0,71504.0,0.01785183]
[1773558280257,0.0014,71511.0,71504.0,0.01785183]
[1773558283557,0.0014,71511.0,71505.0,0.01785183]
[1773558283760,0.0014,71525.0,71501.0,0.01785183]
[1773558283961,0.0014,71524.0,71511.0,0.01785183]
[1773558284254,0.0014,71523.0,71513.0,0.041943]
[1773558284458,0.0014,71523.0,71514.0,0.01785183]
[1773558285355,0.0014,71523.0,71505.0,0.0014]
[1773558285558,0.12554129,71528.0,71516.0,0.01785183]
[1773558285760,0.0014,71527.0,71516.0,0.01785183]
[1773558287463,0.041935,71528.0,71516.0,0.01785183]
[1773558287661,0.0014,71527.0,71516.0,0.01785183]
[1773558290158,0.0014,71526.0,71516.0,0.01785183]
[1773558290658,0.043336,71526.0,71516.0,0.01785183]
[1773558292653,0.041939,71521.0,71505.0,0.01859079]
[1773558293057,0.0014,71526.0,71506.0,0.01719079]
[1773558294054,0.041937,71524.0,71511.0,0.01719079]
[1773558296173,0.041938,71523.0,71511.0,0.01719079]
[1773558296471,0.041939,71522.0,71511.0,0.01719079]
[1773558296970,0.041937,71524.0,71511.0,0.01719079]
[1773558297157,0.0014,71523.0,71515.0,0.01719079]
[1773558297359,0.0014,71522.0,71515.0,0.01719079]
[1773558298469,0.0014,71524.0,71515.0,0.01719079]
[1773558301176,0.041936,71527.0,71515.0,0.01719079]
[1773558301478,0.0014,71526.0,71515.0,0.01719079]
[1773558302178,0.0014,71526.0,71516.0,0.041943]
[1773558303077,0.041937,71525.0,71515.0,0.01719079]
[1773558304577,0.0014,71526.0,71515.0,0.01719079]
[1773558309681,0.041937,71525.0,71515.0,0.01719079]
[1773558310481,0.041941,71518.0,71505.0,0.043348]
[1773558310783,0.0014,71519.0,71506.0,0.0014]
[1773558310973,0.0014,71519.0,71505.0,0.0014]
[1773558311284,0.041941,71518.0,71505.0,0.0014]
[1773558311581,0.041942,71517.0,71505.0,0.0014]
[1773558313182,0.041942,71517.0,71504.0,0.05913979]
[1773558313370,0.041942,71517.0,71505.0,0.0014]
[1773558314280,0.0014,71519.0,71499.0,0.01719079]
[1773558314481,0.0014,71519.0,71499.0,0.06054279]
[1773558314885,0.041944,71513.0,71500.0,0.05914179]
[1773558315087,0.041944,71513.0,71501.0,0.05914079]
[1773558315384,0.041944,71513.0,71502.0,0.01719079]
[1773558316484,0.041943,71515.0,71502.0,0.01719079]
[1773558317688,0.041943,71514.0,71502.0,0.01719079]
[1773558317877,0.0014,71513.0,71502.0,0.01719079]
[1773558319985,0.0014,71513.0,71498.0,0.0014]
[1773558320286,0.0014,71512.0,71499.0,0.01719079]
[1773558320678,0.0014,71512.0,71502.0,0.04195]
[1773558320879,0.0014,71512.0,71503.0,0.01719079]
[1773558322087,0.0014,71512.0,71500.0,0.0597904]
[1773558322287,0.0014,71512.0,71501.0,0.0178394]
[1773558322988,0.043344,71513.0,71501.0,0.0178394]
[1773558323586,0.043344,71513.0,71502.0,0.0178394]
[1773558325587,0.041944,71513.0,71502.0,0.0178394]
[1773558325788,0.043344,71513.0,71502.0,0.0178394]
[1773558328786,0.0014,71513.0,71502.0,0.0597894]
[1773558333188,0.0014,71513.0,71504.0,0.0178394]
[1773558333395,0.0014,71517.0,71510.0,0.0178394]
[1773558334396,0.041939,71521.0,71510.0,0.0178394]
[1773558334590,0.0014,71519.0,71510.0,0.0178394]
[1773558335394,0.04194,71520.0,71510.0,0.0178394]
[1773558335594,0.0014,71519.0,71510.0,0.0178394]
[1773558336595,0.04194,71520.0,71510.0,0.0178394]
[1773558337194,0.04334,71520.0,71510.0,0.0178394]
[1773558337492,0.04194,71520.0,71510.0,0.0178394]
[1773558337693,0.04334,71520.0,71510.0,0.0178394]
[1773558338000,0.0014,71520.0,71511.0,0.041944]
[1773558340402,0.0014,71520.0,71511.0,0.0597834]
[1773558341897,0.041938,71524.0,71512.0,0.0178394]
[1773558341898,0.0014,71521.0,71512.0,0.0178394]
[1773558344504,0.041938,71524.0,71512.0,0.0178394]
[1773558344700,0.000699,71531.0,71514.0,0.0178394]
[1773558345004,0.041936,71526.0,71515.0,0.0178394]
[1773558349003,0.0014,71525.0,71514.0,0.041943]
[1773558349709,0.13441961,71531.0,71519.0,0.0178394]
[1773558352002,0.13441961,71531.0,71519.0,0.0597794]
[1773558353203,0.17635261,71531.0,71519.0,0.0597794]
[1773558353408,0.17635261,71531.0,71519.0,0.0178394]
[1773558354603,0.17635261,71531.0,71519.0,0.0597794]
[1773558354998,0.041936,71527.0,71513.0,0.041943]
[1773558355197,0.0014,71526.0,71512.0,0.041944]
[1773558356010,0.043336,71526.0,71512.0,0.041944]
[1773558356215,0.041937,71524.0,71513.0,0.041943]
[1773558356404,0.043336,71526.0,71513.0,0.041943]
[1773558358008,0.41882612,71554.0,71530.0,0.01777718]
[1773558358209,0.01976487,71553.0,71530.0,0.01777718]
[1773558358405,0.01976487,71553.0,71532.0,0.041932]
[1773558358406,0.041925,71546.0,71532.0,0.041932]
[1773558358913,0.041926,71544.0,71530.0,0.05971018]
[1773558359112,0.041927,71542.0,71528.0,0.041935]
[1773558360216,0.041927,71542.0,71525.0,0.0014]
[1773558360217,0.0014,71543.0,71526.0,0.041936]
[1773558360514,0.0014,71543.0,71526.0,0.01777718]
[1773558361613,0.0024,71543.0,71526.0,0.01777718]
[1773558362017,0.041927,71542.0,71528.0,0.041934]
[1773558362629,0.041927,71542.0,71529.0,0.041934]
[1773558363614,0.0880456,71540.0,71525.0,0.0014]
[1773558363915,0.041929,71538.0,71525.0,0.0014]
[1773558364404,0.041929,71538.0,71525.0,0.043336]
[1773558368916,0.1299736,71540.0,71526.0,0.041936]
[1773558369507,0.0014,71539.0,71526.0,0.041936]
[1773558369708,0.0014,71539.0,71528.0,0.05971118]
[1773558369908,0.041927,71542.0,71528.0,0.05971118]
[1773558370109,0.0014,71539.0,71528.0,0.05971118]
[1773558371313,0.0014,71539.0,71528.0,0.01777718]
[1773558372112,0.0014,71540.0,71528.0,0.01777718]
[1773558372315,0.0014,71540.0,71530.0,0.01777718]
[1773558372715,0.0014,71541.0,71530.0,0.01777718]
[1773558373124,0.041927,71542.0,71530.0,0.01777718]
[1773558373420,0.0014,71541.0,71530.0,0.01777718]
[1773558373622,0.041927,71542.0,71530.0,0.01777718]
[1773558373810,0.0014,71541.0,71530.0,0.01777718]
[1773558375018,0.0014,71541.0,71530.0,0.05971118]
[1773558375224,0.0014,71541.0,71530.0,0.01777718]
[1773558375620,0.041927,71542.0,71530.0,0.01777718]
[1773558375821,0.0014,71541.0,71530.0,0.01777718]
[1773558376625,0.043327,71541.0,71530.0,0.01777718]
[1773558377024,0.0014,71541.0,71530.0,0.01777718]
[1773558377419,0.0014,71541.0,71531.0,0.01777718]
[1773558381527,0.041927,71542.0,71531.0,0.01777718]
[1773558381728,0.043327,71542.0,71531.0,0.01777718]
[1773558382223,0.0014,71542.0,71531.0,0.01777718]
[1773558385031,0.043327,71542.0,71531.0,0.01777718]
[1773558385733,0.04193,71537.0,71526.0,0.01764748]
[1773558385932,0.0014,71542.0,71526.0,0.01764748]
[1773558386726,0.0014,71542.0,71530.0,0.041934]
[1773558387832,0.0014,71542.0,71532.0,0.01764748]
[1773558392642,0.0014,71542.0,71531.0,0.041933]
[1773558392832,0.0014,71542.0,71532.0,0.01764748]
[1773558394338,0.043327,71542.0,71532.0,0.01764748]
[1773558397237,0.131324,71542.0,71528.0,0.05958148]
[1773558397631,0.01745301,71541.0,71520.0,0.0014]
[1773558397835,0.089397,71542.0,71508.0,0.25192758]
[1773558397836,0.041931,71535.0,71521.0,0.043338]
[1773558398236,0.041931,71535.0,71521.0,0.041938]
[1773558398438,0.041931,71535.0,71522.0,0.0014]
[1773558399039,0.0014,71534.0,71522.0,0.0014]
[1773558399234,0.043332,71534.0,71521.0,0.041938]
[1773558403541,0.0014,71534.0,71519.0,0.04194]
[1773558403741,0.041933,71531.0,71519.0,0.04334]
[1773558404036,0.041933,71531.0,71519.0,0.04194]
[1773558404239,0.041933,71531.0,71519.0,0.04334]
[1773558404445,0.041932,71533.0,71519.0,0.04334]
[1773558404848,0.041932,71533.0,71520.0,0.041939]
[1773558405051,0.0014,71534.0,71521.0,0.05958548]
[1773558405352,0.043332,71534.0,71521.0,0.05958548]
[1773558406946,0.041932,71533.0,71519.0,0.0014]
[1773558407147,0.041932,71533.0,71520.0,0.041939]
[1773558409654,0.041933,71532.0,71520.0,0.041939]
[1773558417866,0.041933,71531.0,71518.0,0.04194]
[1773558418070,0.01689668,71528.0,71495.0,0.041954]
[1773558418362,0.041942,71516.0,71502.0,0.04195]
[1773558418553,0.0014,71515.0,71502.0,0.04195]
[1773558418758,0.20043094,71514.0,71499.0,0.01784329]
[1773558418960,0.20043094,71513.0,71498.0,0.01784329]
[1773558419161,0.20043094,71512.0,71498.0,0.01784329]
[1773558419356,0.20043094,71511.0,71498.0,0.01784329]
[1773558419558,0.20043094,71510.0,71498.0,0.01784329]
[1773558419867,0.20043094,71509.0,71498.0,0.01784329]
[1773558420058,0.20043094,71508.0,71504.0,0.041948]
[1773558420259,0.0014,71515.0,71504.0,0.041948]
[1773558420458,0.20032594,71514.0,71501.0,0.01784329]
[1773558420761,0.0014,71522.0,71514.0,0.041943]
[1773558421157,0.1494979,71528.0,71509.0,0.01784329]
[1773558421359,0.0014,71527.0,71512.0,0.01784329]
[1773558422164,0.0014,71527.0,71517.0,0.041941]
[1773558423868,0.041933,71532.0,71518.0,0.01784329]
[1773558424062,0.0014,71531.0,71520.0,0.041939]
[1773558424268,0.0014,71530.0,71520.0,0.041939]
[1773558424657,0.0014,71529.0,71521.0,0.01784329]
[1773558425171,0.041932,71533.0,71521.0,0.01784329]
[1773558425362,0.0014,71532.0,71521.0,0.01784329]
[1773558425868,0.0014,71531.0,71521.0,0.01784329]
[1773558426267,0.0014,71530.0,71521.0,0.01784329]
[1773558426570,0.1511785,71537.0,71521.0,0.01784329]
[1773558426770,0.041931,71535.0,71521.0,0.05978229]
[1773558426959,0.041931,71535.0,71521.0,0.041939]
[1773558427271,0.0014,71535.0,71524.0,0.01784329]
[1773558429072,0.01689668,71549.0,71526.0,0.01784329]
[1773558429263,0.041927,71543.0,71530.0,0.041933]
[1773558429462,0.0014,71542.0,71530.0,0.05977629]
[1773558429970,0.043327,71542.0,71530.0,0.01784329]
[1773558430180,0.0014,71542.0,71530.0,0.01784329]
[1773558430762,0.0014,71542.0,71530.0,0.05977629]
[1773558432772,0.19440963,71541.0,71530.0,0.05977629]
[1773558432974,0.19440963,71540.0,71530.0,0.05977629]
[1773558433167,0.19440963,71539.0,71530.0,0.05977629]
[1773558433363,0.19440963,71538.0,71530.0,0.05977629]
[1773558433561,0.19440963,71537.0,71530.0,0.05977629]
[1773558433863,0.19440963,71536.0,71530.0,0.05977629]
[1773558434066,0.19440963,71535.0,71530.0,0.05977629]
[1773558434277,0.19440963,71534.0,71530.0,0.05977629]
[1773558434474,0.19440963,71533.0,71530.0,0.05977629]
[1773558434674,6.3e-07,71532.0,71530.0,0.05977629]
[1773558434875,0.0014,71542.0,71530.0,0.05977629]
[1773558435468,0.0014,71542.0,71530.0,0.01784329]
[1773558435668,0.043327,71542.0,71530.0,0.01784329]
[1773558436170,0.043327,71542.0,71528.0,0.041935]
[1773558436371,0.041927,71542.0,71528.0,0.05977829]
[1773558436575,0.0014,71541.0,71528.0,0.05977829]
[1773558440983,0.0014,71541.0,71530.0,0.041934]
[1773558442486,0.0014,71541.0,71531.0,0.01996221]
[1773558444080,0.0014,71541.0,71532.0,0.041932]
[1773558446693,0.19556599,71540.0,71532.0,0.041932]
[1773558446887,0.19556599,71539.0,71532.0,0.041932]
[1773558447089,0.19556599,71538.0,71532.0,0.041932]
[1773558447288,0.19556599,71537.0,71532.0,0.06189421]
[1773558447486,0.19556599,71536.0,71532.0,0.06189421]
[1773558447686,0.19556599,71535.0,71532.0,0.06189421]
[1773558447886,9.9e-07,71534.0,71532.0,0.06189421]
[1773558448086,0.0014,71541.0,71532.0,0.06189421]
[1773558449496,0.0014,71541.0,71530.0,0.041934]
[1773558449694,0.0014,71541.0,71524.0,0.0014]